fUSD/lending_fUSD_20250929
["ID","MTS","AMOUNT","RATE_DAILY","PERIOD"]
[388406268,1759158639457,-357.0,0.00019194,2]
[388406270,1759158639467,-1372.83031115,0.00019205,2]
[388406272,1759158639478,-357.0,0.00019222,2]
[388406274,1759158639488,-700.0,0.00019275,2]
[388406276,1759158639499,-168.0,0.00019278,2]
[388406278,1759158639509,-8579.72115505,0.00019292,2]
[388406280,1759158639520,-152.0,0.00019379,2]
[388406283,1759158639530,-152.0,0.00019379,2]
[388406332,1759158640155,-152.0,0.00019379,2]
[388406334,1759158640165,-610.4613,0.00019389,2]
[388406336,1759158640175,-4616.0,0.00019403,2]
[388406338,1759158640187,-1000.0,0.00019421,2]
[388406341,1759158640197,-1000.0,0.00019421,2]
[388406343,1759158640207,-523.48007584,0.00019421,2]
[388406345,1759158640216,-1000.0,0.00019421,2]
[388406347,1759158640226,-1000.0,0.00019421,2]
[388406349,1759158640236,-1000.0,0.00019421,2]
[388406351,1759158640245,-907.6299967,0.00019421,2]
[388406353,1759158640256,-1000.0,0.00019421,2]
[388406355,1759158640265,-518.99449017,0.00019421,2]
[388406357,1759158640274,-1000.0,0.00019421,2]
[388406359,1759158640284,-1000.0,0.00019421,2]
[388406361,1759158640299,-1000.0,0.00019421,2]
[388406363,1759158640308,-501.77899718,0.00019421,2]
[388406365,1759158640318,-1000.0,0.00019421,2]
[388406367,1759158640328,-1000.0,0.00019421,2]
[388406370,1759158640338,-1000.0,0.00019421,2]
[388406372,1759158640348,-505.31409027,0.00019421,2]
[388406374,1759158640357,-501.00326715,0.00019421,2]
[388406376,1759158640367,-1000.0,0.00019421,2]
[388406378,1759158640377,-1000.0,0.00019421,2]
[388406380,1759158640387,-1000.0,0.00019421,2]
[388406382,1759158640398,-1000.0,0.00019421,2]
[388406384,1759158640410,-1000.0,0.00019421,2]
[388406386,1759158640420,-1000.0,0.00019421,2]
[388406388,1759158640430,-1000.0,0.00019421,2]
[388406390,1759158640441,-1000.0,0.00019421,2]
[388406392,1759158640451,-1000.0,0.00019421,2]
[388406394,1759158640461,-1000.0,0.00019421,2]
[388406396,1759158640471,-1000.0,0.00019421,2]
[388406399,1759158640482,-1000.0,0.00019421,2]
[388406401,1759158640492,-1000.0,0.00019421,2]
[388406403,1759158640502,-1000.0,0.00019421,2]
[388406405,1759158640512,-4616.0,0.00019428,2]
[388406407,1759158640522,-291.58274908,0.00019437,2]
[388406409,1759158640535,-4616.0,0.00019471,2]
[388406411,1759158640545,-200.0,0.00019487,2]
[388406413,1759158640555,-89358.09300753,0.000195,2]
[388406415,1759158640566,-357.0,0.00019507,2]
[388406418,1759158640578,-357.0,0.00019517,2]
[388406420,1759158640589,-150.18584876,0.0001955,5]
[388406422,1759158640599,-151.0,0.00019568,2]
[388406424,1759158640608,-151.72334131,0.00019568,2]
[388406426,1759158640619,-150.0,0.00019587,4]
[388406428,1759158640629,-150.0,0.00019587,4]
[388406430,1759158640639,-2205.97143,0.000196,2]
[388406432,1759158640649,-9203.16742766,0.00019643,2]
[388406434,1759158640661,-440.25391584,0.00019646,2]
[388406436,1759158640672,-1415.26164232,0.00019648,2]
[388406438,1759158640682,-362.81084124,0.00019648,2]
[388406440,1759158640694,-440.25391584,0.00019649,2]
[388406443,1759158640705,-3397.39768195,0.0001965,2]
[388406445,1759158640715,-362.81084124,0.0001965,2]
[388406447,1759158640725,-2594.43218347,0.00019651,2]
[388406449,1759158640736,-6897.78181708,0.00019652,2]
[388406451,1759158640747,-1372.83031115,0.00019654,2]
[388406453,1759158640757,-1644.63826566,0.00019654,2]
[388406455,1759158640767,-194.99818267,0.00019654,2]
[388406457,1759158640778,-3397.39768195,0.00019655,2]
[388406459,1759158640794,-936.64021046,0.00019656,2]
[388406461,1759158640804,-936.64021046,0.00019657,2]
[388406463,1759158640815,-223.16737695,0.00019657,2]
[388406465,1759158640826,-103565.28595274,0.00019657,2]
[388406467,1759158640835,-362.81084124,0.00019658,2]
[388406470,1759158640846,-465.95902571,0.00019658,2]
[388406472,1759158640856,-171.61985574,0.00019662,2]
[388406474,1759158640868,-936.64021046,0.00019662,2]
[388406476,1759158640878,-1218.33975593,0.00019664,2]
[388406478,1759158640888,-1218.33975593,0.00019665,2]
[388406480,1759158640899,-6897.78181708,0.00019667,2]
[388406482,1759158640911,-9203.16742766,0.00019669,2]
[388406484,1759158640921,-171.61985574,0.0001967,2]
[388406486,1759158640931,-2594.43218347,0.00019671,2]
[388406488,1759158640941,-1415.26164232,0.00019671,2]
[388406490,1759158640951,-6897.78181708,0.00019672,2]
[388406492,1759158640961,-171.61985574,0.00019674,2]
[388406495,1759158640972,-103565.28595274,0.00019675,2]
[388406497,1759158640982,-2457.34306463,0.00019678,2]
[388406499,1759158640992,-183.24721781,0.00019678,2]
[388406501,1759158641003,-9203.16742766,0.00019678,2]
[388406503,1759158641013,-2363.51280255,0.0001968,2]
[388406505,1759158641024,-936.64021046,0.0001968,2]
[388406507,1759158641034,-315.69952042,0.00019681,2]
[388406509,1759158641045,-688.00758895,0.00019681,2]
[388406512,1759158641055,-3397.39768195,0.00019682,2]
[388406514,1759158641065,-2457.34306463,0.00019683,2]
[388406516,1759158641075,-183.24721781,0.00019684,2]
[388406518,1759158641086,-1218.33975593,0.00019687,2]
[388406520,1759158641095,-688.00758895,0.00019691,2]
[388406522,1759158641105,-152.0,0.00019691,3]
[388406524,1759158641115,-362.81084124,0.00019692,2]
[388406526,1759158641125,-2457.34306463,0.00019692,2]
[388406528,1759158641134,-194.99818267,0.00019692,2]
[388406530,1759158641144,-362.81084124,0.00019693,2]
[388406532,1759158641156,-315.69952042,0.00019695,2]
[388406534,1759158641168,-1218.33975593,0.00019695,2]
[388406536,1759158641178,-3397.39768195,0.00019696,2]
[388406538,1759158641188,-1644.63826566,0.00019697,2]
[388406541,1759158641198,-6897.78181708,0.00019699,2]
[388406543,1759158641209,-465.95902571,0.000197,2]
[388406545,1759158641219,-9203.16742766,0.00019701,2]
[388406547,1759158641230,-171.61985574,0.00019702,2]
[388406549,1759158641241,-6897.78181708,0.00019703,2]
[388406551,1759158641252,-2457.34306463,0.00019705,2]
[388406553,1759158641263,-465.95902571,0.00019705,2]
[388406555,1759158641275,-440.25391584,0.00019707,2]
[388406557,1759158641285,-183.24721781,0.00019707,2]
[388406559,1759158641295,-951.92641297,0.00019708,2]
[388406562,1759158641305,-936.64021046,0.00019712,2]
[388406564,1759158641315,-171.61985574,0.00019712,2]
[388406566,1759158641325,-315.69952042,0.00019713,2]
[388406568,1759158641335,-465.95902571,0.00019713,2]
[388406570,1759158641347,-223.16737695,0.00019713,2]
[388406572,1759158641357,-1068.29879205,0.00019714,2]
[388406574,1759158641367,-1136.29065714,0.00019714,2]
[388406576,1759158641377,-1020.02222845,0.00019714,2]
[388406578,1759158641387,-1047.02986137,0.00019714,2]
[388406580,1759158641397,-1125.04959361,0.00019714,2]
[388406582,1759158641411,-1115.63857267,0.00019714,2]
[388406584,1759158641422,-1146.02969209,0.00019714,2]
[388406586,1759158641432,-1127.64262236,0.00019714,2]
[388406588,1759158641442,-688.00758895,0.00019714,2]
[388406590,1759158641452,-2457.34306463,0.00019715,2]
[388406592,1759158641462,-1415.26164232,0.00019716,2]
[388406594,1759158641473,-2594.43218347,0.00019717,2]
[388406596,1759158641482,-3397.39768195,0.00019717,2]
[388406598,1759158641492,-951.92641297,0.00019717,2]
[388406600,1759158641504,-465.95902571,0.00019718,2]
[388406602,1759158641514,-1415.26164232,0.00019718,2]
[388406605,1759158641524,-440.25391584,0.00019718,2]
[388406607,1759158641535,-1218.33975593,0.00019718,2]
[388406609,1759158641545,-1644.63826566,0.00019719,2]
[388406611,1759158641555,-1644.63826566,0.00019719,2]
[388406613,1759158641565,-2594.43218347,0.0001972,2]
[388406615,1759158641575,-171.61985574,0.00019721,2]
[388406617,1759158641585,-194.99818267,0.00019723,2]
[388406619,1759158641595,-936.64021046,0.00019723,2]
[388406621,1759158641606,-103565.28595274,0.00019725,2]
[388406623,1759158641615,-2457.34306463,0.00019726,2]
[388406625,1759158641625,-151.3,0.00019726,2]
[388406627,1759158641634,-156.587,0.00019726,2]
[388406629,1759158641644,-688.00758895,0.00019727,2]
[388406630,1759158641654,-1415.26164232,0.00019727,2]
[388406632,1759158641666,-465.95902571,0.00019729,2]
[388406634,1759158641675,-9203.16742766,0.0001973,2]
[388406636,1759158641686,-315.69952042,0.00019731,2]
[388406638,1759158641697,-178.44,0.00019734,2]
[388406639,1759158641707,-2363.51280255,0.00019736,2]
[388406641,1759158641717,-1415.26164232,0.0001974,2]
[388406643,1759158641727,-315.69952042,0.00019741,2]
[388406645,1759158641737,-223.16737695,0.00019743,2]
[388406646,1759158641747,-103565.28595274,0.00019745,2]
[388406648,1759158641757,-6897.78181708,0.00019745,2]
[388406650,1759158641767,-1218.33975593,0.00019747,2]
[388406652,1759158641778,-348.28,0.00019748,2]
[388406653,1759158641791,-2457.34306463,0.00019749,2]
[388406655,1759158641800,-688.00758895,0.00019749,2]
[388406657,1759158641811,-223.16737695,0.00019749,2]
[388406659,1759158641821,-2594.43218347,0.00019751,2]
[388406661,1759158641832,-362.81084124,0.00019752,2]
[388406662,1759158641841,-362.81084124,0.00019753,2]
[388406664,1759158641852,-103565.28595274,0.00019754,2]
[388406666,1759158641865,-171.61985574,0.00019755,2]
[388406668,1759158641875,-103565.28595274,0.00019755,2]
[388406670,1759158641885,-688.00758895,0.00019755,2]
[388406672,1759158641895,-3397.39768195,0.0001976,2]
[388406673,1759158641907,-2594.43218347,0.00019761,2]
[388406675,1759158641917,-1644.63826566,0.00019763,2]
[388406677,1759158641927,-951.92641297,0.00019764,2]
[388406679,1759158641938,-440.25391584,0.00019767,2]
[388406681,1759158641948,-465.95902571,0.00019767,2]
[388406682,1759158641958,-2363.51280255,0.00019767,2]
[388406684,1759158641969,-223.16737695,0.00019767,2]
[388406686,1759158641979,-6897.78181708,0.00019771,2]
[388406688,1759158641990,-1415.26164232,0.00019771,2]
[388406689,1759158642000,-223.16737695,0.00019772,2]
[388406691,1759158642010,-951.92641297,0.00019772,2]
[388406693,1759158642021,-194.99818267,0.00019772,2]
[388406695,1759158642030,-951.92641297,0.00019774,2]
[388406697,1759158642040,-103565.28595274,0.00019775,2]
[388406699,1759158642050,-1644.63826566,0.00019776,2]
[388406701,1759158642061,-2363.51280255,0.00019778,2]
[388406702,1759158642071,-183.24721781,0.00019778,2]
[388406704,1759158642081,-951.92641297,0.00019779,2]
[388406706,1759158642090,-1644.63826566,0.0001978,2]
[388406708,1759158642100,-194.99818267,0.0001978,2]
[388406710,1759158642110,-951.92641297,0.00019781,2]
[388406711,1759158642120,-315.69952042,0.00019782,2]
[388406713,1759158642129,-1218.33975593,0.00019783,2]
[388406715,1759158642140,-357.0,0.00019783,2]
[388406717,1759158642149,-440.25391584,0.00019786,2]
[388406719,1759158642161,-9203.16742766,0.00019787,2]
[388406721,1759158642171,-183.24721781,0.00019787,2]
[388406723,1759158642180,-315.69952042,0.00019787,2]
[388406725,1759158642190,-194.99818267,0.00019788,2]
[388406727,1759158642201,-194.99818267,0.00019788,2]
[388406728,1759158642211,-2363.51280255,0.00019788,2]
[388406732,1759158642235,-357.0,0.0001979,2]
[388406734,1759158642256,-9203.16742766,0.00019792,2]
[388406738,1759158642281,-440.25391584,0.00019792,2]
[388406741,1759158642305,-2363.51280255,0.00019793,2]
[388406743,1759158642323,-2594.43218347,0.00019793,2]
[388406746,1759158642344,-3397.39768195,0.00019794,2]
[388406749,1759158642369,-936.64021046,0.00019795,2]
[388406752,1759158642392,-183.24721781,0.00019796,2]
[388406755,1759158642414,-688.00758895,0.00019796,2]
[388406758,1759158642434,-183.24721781,0.00019796,2]
[388406761,1759158642457,-1000.0,0.00019799,2]
[388406763,1759158642476,-2363.51280255,0.00019799,2]
[388406766,1759158642499,-223.16737695,0.000198,2]
[388406768,1759158642514,-178.79139035,0.00019816,12]
[388406771,1759158642537,-250.0,0.00019822,2]
[388406774,1759158642553,-1231.389,0.00019845,2]
[388406776,1759158642571,-175.682,0.00019845,2]
[388406779,1759158642590,-485.777,0.00019845,2]
[388406782,1759158642609,-168.557,0.00019845,2]
[388406786,1759158642650,-200.0,0.00019866,2]
[388406789,1759158642670,-500.0,0.0001987,2]
[388406791,1759158642690,-1000.0,0.0001987,2]
[388406794,1759158642710,-22656.92378947,0.0001988,2]
[388406797,1759158642728,-187.10510933,0.0001989,2]
[388406800,1759158642746,-150.18,0.0001989,2]
[388406802,1759158642765,-165.16,0.00019895,2]
[388406805,1759158642785,-151.0,0.00019897,2]
[388406807,1759158642804,-150657.50721549,0.000199,2]
[388406810,1759158642822,-613.2887023,0.000199,2]
[388406812,1759158642841,-150.0,0.00019937,4]
[388406815,1759158642859,-150.0,0.00019937,4]
[388406818,1759158642877,-150.0,0.00019937,4]
[388406820,1759158642895,-150.0,0.00019937,4]
[388406823,1759158642914,-150.0,0.00019937,4]
[388406826,1759158642934,-8549.19529997,0.00019967,2]
[388406828,1759158642952,-1500.0,0.00019968,2]
[388406831,1759158642969,-1500.0,0.00019968,2]
[388406835,1759158642989,-1007.10051927,0.00019968,2]
[388406840,1759158643007,-1500.0,0.00019968,2]
[388406845,1759158643025,-1500.0,0.00019968,2]
[388406849,1759158643045,-1500.0,0.00019968,2]
[388406853,1759158643064,-562.5287038,0.00019968,2]
[388406858,1759158643082,-1500.0,0.00019968,2]
[388406861,1759158643101,-1500.0,0.00019968,2]
[388406863,1759158643119,-1401.4094343,0.00019968,2]
[388406867,1759158643138,-1500.0,0.00019968,2]
[388406871,1759158643158,-483.75808727,0.00019968,2]
[388406873,1759158643178,-1500.0,0.00019968,2]
[388406876,1759158643197,-1500.0,0.00019968,2]
[388406878,1759158643216,-1500.0,0.00019968,2]
[388406881,1759158643236,-1500.0,0.00019968,2]
[388406884,1759158643254,-1500.0,0.00019968,2]
[388406886,1759158643273,-369.57854038,0.00019968,2]
[388406889,1759158643292,-1500.0,0.00019968,2]
[388406891,1759158643313,-1500.0,0.00019968,2]
[388406894,1759158643333,-835.70304984,0.00019968,2]
[388406897,1759158643354,-1500.0,0.00019968,2]
[388406899,1759158643373,-1500.0,0.00019968,2]
[388406902,1759158643392,-1500.0,0.00019968,2]
[388406904,1759158643411,-968.46191497,0.00019968,2]
[388406907,1759158643430,-1500.0,0.00019968,2]
[388406910,1759158643448,-500.0,0.0001997,2]
[388406912,1759158643468,-500.0,0.0001997,2]
[388406915,1759158643486,-1000.0,0.0001997,2]
[388406917,1759158643506,-1000.0,0.0001997,2]
[388406920,1759158643526,-357.0,0.00019979,2]
[388406923,1759158643547,-150.18,0.0001999,2]
[388406926,1759158643566,-150.18,0.0001999,2]
[388406928,1759158643586,-150.18,0.0001999,2]
[388406929,1759158643605,-150.18,0.0001999,2]
[388406930,1759158643625,-973.5915,0.00019999,2]
[388406931,1759158643644,-1000.0,0.00019999,2]
[388406932,1759158643665,-1000.0,0.00019999,2]
[388406933,1759158643685,-6675.68867971,0.0002,2]
[388406934,1759158643705,-202.54,0.0002,2]
[388406935,1759158643725,-15939.57781522,0.0002,2]
[388406936,1759158643744,-3950.0,0.0002,2]
[388406937,1759158643763,-1276.57635201,0.0002,2]
[388406939,1759158643785,-7272.6104658,0.0002,2]
[388406940,1759158643805,-2097.78896925,0.0002,3]
[388406941,1759158643824,-3154.27370065,0.0002,5]
[388406942,1759158643843,-150.0,0.0002,2]
[388406944,1759158643863,-1030.51542859,0.0002,2]
[388406945,1759158643882,-0.25342439,0.0002,15]
[388406948,1759158643900,-90761.23170952,0.0002,2]
[388406951,1759158643920,-3573.8,0.0002,2]
[388406954,1759158643939,-2299.999997,0.0002,2]
[388406957,1759158643957,-150.0,0.0002,2]
[388406960,1759158643975,-150.0,0.0002,2]
[388406964,1759158643993,-214.0,0.0002,2]
[388406968,1759158644011,-150.0,0.0002,2]
[388406971,1759158644029,-63191.0,0.0002,7]
[388406974,1759158644048,-150.0,0.0002,2]
[388406977,1759158644066,-200.271108,0.0002,2]
[388406979,1759158644084,-1126.71777351,0.00020001,2]
[388406982,1759158644101,-1131.95566703,0.00020001,2]
[388406985,1759158644118,-1129.07659109,0.00020001,2]
[388406988,1759158644136,-1036.57430157,0.00020001,2]
[388406991,1759158644153,-1139.45217475,0.00020001,2]
[388406994,1759158644173,-1011.73314808,0.00020001,2]
[388406997,1759158644190,-1638.62680389,0.00020001,2]
[388406999,1759158644208,-9167.21006612,0.0002001,2]
[388407002,1759158644226,-5055.85058159,0.0002001,2]
[388407005,1759158644244,-5772.0,0.0002001,2]
[388407008,1759158644263,-2664.0,0.00020025,2]
[388407011,1759158644281,-200.0,0.00020064,2]
[388407014,1759158644300,-586.13698946,0.00020068,2]
[388407017,1759158644318,-203.62409141,0.00020068,2]
[388407020,1759158644335,-196.81859228,0.00020071,2]
[388407023,1759158644353,-2518.17,0.00020074,2]
[388407026,1759158644371,-2205.97142,0.000201,2]
[388407028,1759158644389,-1372.83031115,0.00020103,2]
[388407031,1759158644409,-5000.0,0.00020126,2]
[388407034,1759158644428,-238.56799064,0.00020141,2]
[388407037,1759158644445,-357.0,0.00020168,2]
[388407040,1759158644464,-6675.68867971,0.000202,2]
[388407043,1759158644482,-10499.37164241,0.000202,2]
[388407046,1759158644500,-400.0,0.00020207,2]
[388407049,1759158644518,-280.317389,0.00020212,2]
[388407052,1759158644536,-200.0,0.00020245,2]
[388407054,1759158644554,-284.7,0.00020246,2]
[388407057,1759158644571,-357.0,0.0002025,2]
[388407060,1759158644589,-1972.61,0.0002026,2]
[388407063,1759158644623,-346.92554585,0.00020264,2]
[388407065,1759158644653,-160.0,0.00020264,2]
[388407069,1759158644677,-257.91778498,0.00020264,2]
[388407072,1759158644702,-646.65982734,0.00020265,2]
[388407075,1759158644723,-445.57017211,0.00020265,2]
[388407079,1759158644748,-284.0,0.0002027,2]
[388407082,1759158644770,-162.380719,0.00020274,2]
[388407085,1759158644792,-322.06678736,0.00020283,2]
[388407087,1759158644813,-150.0,0.00020287,4]
[388407088,1759158644834,-150.0,0.00020287,4]
[388407089,1759158644854,-357.0,0.00020288,2]
[388407090,1759158644874,-178.44,0.00020292,2]
[388407091,1759158644894,-150.18,0.00020297,2]
[388407092,1759158644914,-357.0,0.00020298,2]
[388407093,1759158644934,-2000.0,0.00020307,2]
[388407094,1759158644953,-357.0,0.00020308,2]
[388407095,1759158644971,-4337.71,0.00020309,2]
[388407096,1759158644991,-271.64,0.00020319,2]
[388407097,1759158645010,-357.0,0.00020336,2]
[388407098,1759158645029,-363.81618573,0.00020354,2]
[388407100,1759158645048,-500.0,0.0002037,2]
[388407103,1759158645065,-1000.0,0.0002037,2]
[388407106,1759158645083,-700.0,0.00020371,2]
[388407109,1759158645100,-8549.19529997,0.00020373,2]
[388407112,1759158645119,-183.79573144,0.00020382,2]
[388407115,1759158645137,-150.0,0.00020382,2]
[388407117,1759158645156,-150.0,0.00020382,2]
[388407120,1759158645174,-150.0,0.00020382,2]
[388407123,1759158645192,-150.0,0.00020382,2]
[388407126,1759158645211,-150.0,0.00020382,2]
[388407129,1759158645230,-150.0,0.00020382,2]
[388407132,1759158645247,-150.0,0.00020382,2]
[388407135,1759158645265,-150.0,0.00020382,2]
[388407138,1759158645283,-253.34808058,0.00020382,2]
[388407141,1759158645301,-150.0,0.00020382,2]
[388407144,1759158645318,-500.0,0.00020382,2]
[388407146,1759158645337,-150.0,0.00020382,2]
[388407149,1759158645357,-150.0,0.00020382,2]
[388407152,1759158645375,-500.0,0.00020382,2]
[388407155,1759158645392,-500.0,0.00020382,2]
[388407158,1759158645413,-150.0,0.00020382,2]
[388407161,1759158645433,-150.0,0.00020382,2]
[388407164,1759158645453,-297.51631309,0.00020382,2]
[388407167,1759158645473,-150.0,0.00020382,2]
[388407169,1759158645491,-2636.0,0.00020382,2]
[388407172,1759158645508,-150.0,0.00020382,2]
[388407175,1759158645527,-500.0,0.00020382,2]
[388407178,1759158645544,-150.0,0.00020382,2]
[388407181,1759158645562,-1783.0,0.00020382,2]
[388407184,1759158645581,-500.0,0.00020382,2]
[388407187,1759158645600,-150.0,0.00020382,2]
[388407190,1759158645619,-150.0,0.00020382,2]
[388407192,1759158645636,-150.0,0.00020382,2]
[388407195,1759158645653,-500.0,0.00020382,2]
[388407198,1759158645673,-150.0,0.00020382,2]
[388407201,1759158645693,-150.0,0.00020382,2]
[388407204,1759158645711,-500.0,0.00020382,2]
[388407207,1759158645727,-150.0,0.00020382,2]
[388407210,1759158645744,-500.0,0.00020382,2]
[388407213,1759158645763,-500.0,0.00020382,2]
[388407215,1759158645779,-150.0,0.00020382,2]
[388407218,1759158645799,-150.0,0.00020382,2]
[388407221,1759158645816,-503.0,0.00020382,2]
[388407223,1759158645833,-6675.68867971,0.000204,2]
[388407226,1759158645850,-169.1,0.000204,3]
[388407229,1759158645869,-405.56558409,0.00020424,2]
[388407231,1759158645885,-23581.44,0.00020434,2]
[388407234,1759158645901,-150.18,0.00020437,2]
[388407237,1759158645918,-1249.17,0.00020447,2]
[388407239,1759158645934,-304.2757,0.00020448,2]
[388407242,1759158645950,-1849.66,0.00020462,2]
[388407245,1759158645967,-2351.0,0.00020469,2]
[388407247,1759158645981,-326.19,0.00020472,2]
[388407250,1759158645997,-5000.0,0.00020479,2]
[388407252,1759158646013,-357.0,0.00020479,2]
[388407255,1759158646029,-28374.71829233,0.00020484,2]
[388407316,1759158646616,-447.31498245,0.00020495,2]
[388407322,1759158646672,-500.0,0.00020516,2]
[388407324,1759158646683,-500.0,0.00020516,2]
[388407327,1759158646694,-635.71807562,0.00020516,2]
[388407329,1759158646704,-500.0,0.00020516,2]
[388407331,1759158646714,-2000.0,0.00020516,2]
[388407333,1759158646723,-500.0,0.00020516,2]
[388407335,1759158646734,-1000.0,0.00020516,2]
[388407337,1759158646743,-500.0,0.00020516,2]
[388407339,1759158646753,-1500.0,0.00020516,2]
[388407341,1759158646762,-2473.96,0.00020526,2]
[388407343,1759158646772,-189.32,0.00020548,2]
[388407345,1759158646785,-21185.67,0.00020548,2]
[388407347,1759158646794,-1372.83031115,0.00020552,2]
[388407349,1759158646805,-16465.76314761,0.00020555,2]
[388407351,1759158646815,-5000.0,0.00020558,2]
[388407353,1759158646826,-489.06438081,0.00020566,2]
[388407355,1759158646836,-5000.0,0.00020568,2]
[388407357,1759158646846,-2943.6,0.00020592,2]
[388407359,1759158646856,-160.77,0.000206,2]
[388407361,1759158646868,-6675.68867971,0.000206,2]
[388407363,1759158646879,-2205.97142,0.000206,2]
[388407365,1759158646888,-357.0,0.00020603,2]
[388407367,1759158646899,-348.28,0.00020606,2]
[388407369,1759158646910,-5000.0,0.00020621,2]
[388407371,1759158646919,-530.81377918,0.00020636,2]
[388407373,1759158646929,-25000.0,0.0002064,2]
[388407375,1759158646940,-2242.5,0.00020643,2]
[388407377,1759158646950,-5000.0,0.00020644,2]
[388407379,1759158646960,-10000.0,0.00020646,2]
[388407382,1759158646971,-77377.79791054,0.00020647,2]
[388407384,1759158646980,-150.0,0.00020656,2]
[388407386,1759158646990,-150.0,0.00020656,2]
[388407388,1759158647000,-231.9018861,0.00020656,2]
[388407390,1759158647010,-150.0,0.00020656,2]
[388407392,1759158647020,-248.54890191,0.00020656,2]
[388407394,1759158647031,-150.0,0.00020656,2]
[388407396,1759158647043,-152.35426519,0.00020656,2]
[388407398,1759158647052,-500.0,0.00020656,2]
[388407400,1759158647063,-213.7985424,0.00020656,2]
[388407401,1759158647073,-500.0,0.00020656,2]
[388407402,1759158647083,-500.0,0.00020656,2]
[388407403,1759158647094,-150.0,0.00020656,2]
[388407404,1759158647104,-150.0,0.00020656,2]
[388407405,1759158647115,-150.0,0.00020656,2]
[388407406,1759158647125,-2636.0,0.00020656,2]
[388407407,1759158647135,-500.0,0.00020656,2]
[388407408,1759158647145,-1783.0,0.00020656,2]
[388407409,1759158647156,-500.0,0.00020656,2]
[388407410,1759158647168,-150.0,0.00020656,2]
[388407411,1759158647178,-200.0,0.00020656,2]
[388407412,1759158647188,-250.0,0.00020656,2]
[388407413,1759158647198,-150.0,0.00020656,2]
[388407414,1759158647207,-500.0,0.00020656,2]
[388407415,1759158647217,-500.0,0.00020656,2]
[388407417,1759158647226,-500.0,0.00020656,2]
[388407419,1759158647235,-150.0,0.00020656,2]
[388407421,1759158647244,-357.0,0.00020667,2]
[388407422,1759158647254,-357.0,0.0002067,2]
[388407424,1759158647263,-22330.77303772,0.000207,2]
[388407426,1759158647272,-262.82,0.000207,2]
[388407428,1759158647282,-572.56317754,0.00020707,2]
[388407431,1759158647292,-357.0,0.00020734,2]
[388407432,1759158647301,-5000.0,0.00020755,2]
[388407435,1759158647311,-180.0,0.00020768,2]
[388407437,1759158647322,-614.3125759,0.00020778,2]
[388407439,1759158647331,-8549.19529997,0.00020778,2]
[388407441,1759158647341,-357.0,0.00020787,2]
[388407443,1759158647350,-6675.68867971,0.000208,2]
[388407445,1759158647360,-357.0,0.00020821,2]
[388407447,1759158647370,-168.3888056,0.00020822,2]
[388407449,1759158647380,-682.06237414,0.00020826,2]
[388407450,1759158647390,-150.0,0.00020849,2]
[388407453,1759158647400,-656.06197426,0.00020849,2]
[388407454,1759158647410,-77473.42632938,0.0002085,2]
[388407457,1759158647421,-5000.0,0.00020863,2]
[388407458,1759158647430,-28374.71829233,0.00020865,2]
[388407461,1759158647440,-150.0,0.00020889,2]
[388407463,1759158647450,-25000.0,0.0002089,2]
[388407465,1759158647460,-603.65498084,0.000209,2]
[388407467,1759158647471,-195.79028736,0.000209,2]
[388407469,1759158647480,-5000.0,0.00020911,2]
[388407471,1759158647490,-150.0,0.00020917,2]
[388407473,1759158647500,-697.81137262,0.00020919,2]
[388407475,1759158647510,-178.44,0.00020921,2]
[388407477,1759158647520,-500.0,0.0002093,2]
[388407479,1759158647529,-500.0,0.0002093,2]
[388407481,1759158647539,-500.0,0.0002093,2]
[388407483,1759158647549,-150.0,0.0002093,2]
[388407485,1759158647559,-200.0,0.0002093,2]
[388407487,1759158647568,-2636.0,0.0002093,2]
[388407489,1759158647578,-500.0,0.0002093,2]
[388407491,1759158647588,-1783.0,0.0002093,2]
[388407493,1759158647597,-500.0,0.0002093,2]